lending/lending_fUSD_20250706
["ID","MTS","AMOUNT","RATE_DAILY","PERIOD"]
[370014796,1751833836541,-151.0,0.00019078,2]
[370014797,1751833836550,-151.0,0.00019078,2]
[370014798,1751833836560,-151.0,0.00019078,2]
[370014799,1751833836569,-151.0,0.00019078,2]
[370014800,1751833836578,-151.0,0.00019078,2]
[370014801,1751833836588,-151.0,0.00019078,2]
[370014802,1751833836597,-151.0,0.00019078,2]
[370014803,1751833836606,-151.0,0.00019078,2]
[370014804,1751833836616,-152.019496,0.00019078,2]
[370014805,1751833836625,-180.710778,0.00019078,2]
[370014806,1751833836634,-180.710778,0.00019078,2]
[370014807,1751833836643,-180.710778,0.00019078,2]
[370014808,1751833836653,-180.710778,0.00019078,2]
[370014809,1751833836662,-180.710778,0.00019078,2]
[370014810,1751833836671,-180.710778,0.00019078,2]
[370014811,1751833836680,-180.710778,0.00019078,2]
[370014812,1751833836689,-180.710778,0.00019078,2]
[370014813,1751833836699,-151.0,0.00019078,2]
[370014814,1751833836708,-151.0,0.00019078,2]
[370014815,1751833836718,-151.0,0.00019078,2]
[370014816,1751833836728,-151.0,0.00019078,2]
[370014817,1751833836737,-151.0,0.00019078,2]
[370014818,1751833836746,-151.0,0.00019078,2]
[370014819,1751833836756,-274.636803,0.00019078,2]
[370014820,1751833836765,-274.636803,0.00019078,2]
[370014821,1751833836774,-274.636803,0.00019078,2]
[370014822,1751833836783,-274.636803,0.00019078,2]
[370014823,1751833836792,-274.636803,0.00019078,2]
[370014824,1751833836802,-274.636801,0.00019078,2]
[370014825,1751833836811,-1717.009,0.00019078,2]
[370014826,1751833836823,-237.094,0.00019078,2]
[370014827,1751833836832,-274.31120928,0.00019078,2]
[370014828,1751833836842,-155.39510722,0.00019078,2]
[370014829,1751833836851,-19045.1056,0.00019078,2]
[370014830,1751833836862,-500.0,0.00019078,2]
[370014831,1751833836871,-36242.1628,0.00019078,2]
[370014832,1751833836881,-16834.6463,0.00019078,2]
[370014833,1751833836891,-1000.0,0.000191,3]
[370014834,1751833836901,-1000.0,0.000191,3]
[370014835,1751833836911,-1000.0,0.000191,3]
[370014836,1751833836920,-1003.0,0.000191,3]
[370014837,1751833836930,-865.0,0.000191,3]
[370014838,1751833836939,-1000.0,0.000191,3]
[370014839,1751833836949,-1000.0,0.000191,2]
[370014840,1751833836958,-151.0,0.000191,2]
[370014841,1751833836968,-151.0,0.000191,2]
[370014842,1751833836977,-151.0,0.000191,2]
[370014843,1751833836988,-180.710778,0.000191,2]
[370014844,1751833836998,-180.710783,0.000191,2]
[370014845,1751833837008,-731.67726822,0.00019109,2]
[370014846,1751833837018,-200.0,0.00019111,2]
[370014847,1751833837027,-1098.0,0.00019111,2]
[370014848,1751833837037,-150.0,0.00019116,2]
[370014849,1751833837047,-286.806538,0.00019122,2]
[370014850,1751833837056,-151.0,0.00019147,2]
[370014851,1751833837066,-150.0,0.00019155,2]
[370014852,1751833837075,-177.075529,0.00019156,2]
[370014853,1751833837085,-151.0,0.00019156,2]
[370014854,1751833837094,-2133.62667156,0.00019156,2]
[370014855,1751833837104,-150.0,0.00019159,2]
[370014856,1751833837113,-300.0,0.00019166,2]
[370014857,1751833837122,-300.0,0.00019166,2]
[370014858,1751833837132,-300.0,0.00019166,2]
[370014859,1751833837142,-459.15018313,0.00019167,2]
[370014860,1751833837152,-500.0,0.00019167,2]
[370014861,1751833837162,-1312.0,0.00019167,2]
[370014862,1751833837171,-500.0,0.00019167,2]
[370014864,1751833837180,-500.0,0.00019167,2]
[370014865,1751833837189,-500.0,0.00019167,2]
[370014867,1751833837198,-500.0,0.00019167,2]
[370014869,1751833837208,-500.0,0.00019167,2]
[370014871,1751833837217,-500.0,0.00019167,2]
[370014872,1751833837227,-500.0,0.00019167,2]
[370014873,1751833837236,-500.0,0.00019167,2]
[370014874,1751833837245,-500.0,0.00019167,2]
[370014876,1751833837255,-500.0,0.00019167,2]
[370014877,1751833837264,-500.0,0.00019167,2]
[370014879,1751833837273,-500.0,0.00019167,2]
[370014880,1751833837283,-500.0,0.00019167,2]
[370014881,1751833837292,-500.0,0.00019167,2]
[370014882,1751833837301,-500.0,0.00019167,2]
[370014883,1751833837311,-500.0,0.00019167,2]
[370014884,1751833837320,-500.0,0.00019167,2]
[370014885,1751833837329,-500.0,0.00019167,2]
[370014886,1751833837339,-500.0,0.00019167,2]
[370014887,1751833837348,-500.0,0.00019167,2]
[370014888,1751833837357,-500.0,0.00019167,2]
[370014889,1751833837366,-500.0,0.00019167,2]
[370014890,1751833837375,-571.0,0.00019167,2]
[370014891,1751833837384,-46390.9744039,0.00019167,2]
[370014892,1751833837394,-181.9936096,0.00019167,2]
[370014893,1751833837403,-6252.3755785,0.00019167,2]
[370014894,1751833837412,-348.67168697,0.00019167,2]
[370014895,1751833837422,-1220.646081,0.00019167,2]
[370014896,1751833837431,-86335.1501569,0.00019167,2]
[370014897,1751833837440,-356.0,0.00019167,2]
[370014898,1751833837449,-198.18955795,0.00019168,2]
[370014899,1751833837459,-1221.68369032,0.0001917,2]
[370014900,1751833837469,-1000.0,0.0001917,2]
[370014901,1751833837478,-500.0,0.00019173,2]
[370014902,1751833837488,-303.66513119,0.00019173,2]
[370014903,1751833837499,-500.0,0.00019173,2]
[370014904,1751833837508,-500.0,0.00019173,2]
[370014905,1751833837518,-499.97250756,0.00019173,2]
[370014906,1751833837527,-500.0,0.00019173,2]
[370014907,1751833837536,-502.0653065,0.00019173,2]
[370014908,1751833837546,-500.0,0.00019173,2]
[370014909,1751833837557,-159.91700921,0.00019173,2]
[370014910,1751833837567,-500.0,0.00019173,2]
[370014911,1751833837578,-500.0,0.00019173,2]
[370014912,1751833837589,-500.0,0.00019173,2]
[370014913,1751833837600,-500.45076342,0.00019173,2]
[370014914,1751833837609,-500.0,0.00019173,2]
[370014915,1751833837620,-500.0,0.00019173,2]
[370014916,1751833837631,-500.0,0.00019173,2]
[370014918,1751833837640,-500.0,0.00019173,2]
[370014919,1751833837650,-731.67726822,0.00019175,2]
[370014921,1751833837659,-160.0,0.00019177,2]
[370014922,1751833837668,-210.28571445,0.00019177,2]
[370014923,1751833837746,-836.76783547,0.00019177,2]
[370014925,1751833837755,-300.0,0.00019177,2]
[370014927,1751833837764,-300.0,0.00019177,2]
[370014929,1751833837773,-150.0,0.00019178,2]
[370014931,1751833837782,-181.49887131,0.00019178,2]
[370014933,1751833837791,-150.0,0.00019178,2]
[370014935,1751833837800,-2392.30466809,0.00019178,2]
[370014937,1751833837809,-460.0,0.00019178,2]
[370014939,1751833837821,-460.0,0.00019178,2]
[370014941,1751833837830,-460.0,0.00019178,2]
[370014943,1751833837839,-460.0,0.00019178,2]
[370014945,1751833837847,-460.0,0.00019178,2]
[370014947,1751833837857,-306.3843001,0.00019178,2]
[370014950,1751833837876,-277.67214627,0.00019178,2]
[370014953,1751833837885,-460.0,0.00019178,2]
[370014956,1751833837894,-460.0,0.00019178,2]
[370014959,1751833837903,-249.04657603,0.00019178,2]
[370014963,1751833837927,-500.0,0.00018289,2]
[370014965,1751833837936,-210.95342397,0.00019178,2]
[370014967,1751833837945,-491.03871017,0.00019178,2]
[370014970,1751833837955,-460.0,0.00019178,2]
[370014973,1751833837964,-460.0,0.00019178,2]
[370014976,1751833837973,-460.0,0.00019178,2]
[370014979,1751833837982,-460.0,0.00019178,2]
[370014981,1751833837991,-1000.0,0.00019178,2]
[370014983,1751833838001,-340.95239418,0.00019178,2]
[370015019,1751833839478,-179.4799622,0.00018319,2]
[370015020,1751833839487,-500.0,0.00018319,2]
[370015021,1751833839496,-410.13183372,0.00018319,2]
[370015022,1751833839505,-600.0,0.00018563,2]
[370015023,1751833839514,-500.0,0.00019173,2]
[370015024,1751833839524,-151.93760582,0.00019178,2]
[370015025,1751833839533,-460.0,0.00019178,2]
[370015026,1751833839542,-460.0,0.00019178,2]
[370015027,1751833839552,-460.0,0.00019178,2]
[370015028,1751833839561,-593.33715302,0.00019178,2]
[370015029,1751833839570,-460.0,0.00019178,2]
[370015030,1751833839579,-460.0,0.00019178,2]
[370015031,1751833839588,-490.0,0.00019178,2]
[370015032,1751833839597,-590.57837206,0.00019178,2]
[370015033,1751833839607,-460.0,0.00019178,2]
[370015034,1751833839616,-460.0,0.00019178,2]
[370015035,1751833839625,-460.0,0.00019178,2]
[370015036,1751833839635,-228.28,0.00019178,2]
[370015037,1751833839643,-488.47280446,0.00019178,2]
[370015038,1751833839652,-520.0,0.00019178,2]
[370015039,1751833839662,-460.0,0.00019178,2]
[370015040,1751833839671,-490.0,0.00019178,2]
[370015041,1751833839680,-460.0,0.00019178,2]
[370015042,1751833839690,-460.0,0.00019178,2]
[370015043,1751833839699,-460.0,0.00019178,2]
[370015044,1751833839708,-460.0,0.00019178,2]
[370015045,1751833839718,-460.0,0.00019178,2]
[370015046,1751833839727,-460.0,0.00019178,2]
[370015047,1751833839736,-460.0,0.00019178,2]
[370015048,1751833839746,-534.022836,0.00019178,2]
[370015049,1751833839755,-167.195426,0.00019178,2]
[370015050,1751833839764,-197.957146,0.00019178,2]
[370015051,1751833839774,-490.0,0.00019178,2]
[370015052,1751833839783,-3992.771051,0.00019178,2]
[370015053,1751833839792,-3408.16599,0.00019178,2]
[370015054,1751833839801,-4084.941844,0.00019178,2]
[370015055,1751833839810,-460.0,0.00019178,2]
[370015056,1751833839819,-460.0,0.00019178,2]
[370015057,1751833839828,-213.71482629,0.00019178,2]
[370015058,1751833839837,-506.9,0.00019178,2]
[370015059,1751833839846,-490.0,0.00019178,2]
[370015060,1751833839855,-460.0,0.00019178,2]
[370015061,1751833839864,-460.0,0.00019178,2]
[370015062,1751833839873,-460.0,0.00019178,2]
[370015063,1751833839882,-493.8592707,0.00019178,2]
[370015064,1751833839892,-548.93,0.00019178,2]
[370015065,1751833839902,-490.0,0.00019178,2]
[370015066,1751833839911,-460.0,0.00019178,2]
[370015067,1751833839920,-490.0,0.00019178,2]
[370015068,1751833839930,-490.0,0.00019178,2]
[370015069,1751833839939,-460.0,0.00019178,2]
[370015070,1751833839948,-460.0,0.00019178,2]
[370015071,1751833839957,-460.0,0.00019178,2]
[370015072,1751833839966,-460.0,0.00019178,2]
[370015073,1751833839976,-153.89276761,0.00019178,2]
[370015074,1751833839986,-460.0,0.00019178,2]
[370015075,1751833839995,-460.0,0.00019178,2]
[370015076,1751833840004,-460.0,0.00019178,2]
[370015077,1751833840013,-460.0,0.00019178,2]
[370015078,1751833840023,-460.0,0.00019178,2]
[370015079,1751833840032,-460.0,0.00019178,2]
[370015080,1751833840042,-460.0,0.00019178,2]
[370015081,1751833840051,-258.33,0.00019178,2]
[370015082,1751833840060,-460.0,0.00019178,2]
[370015083,1751833840069,-460.0,0.00019178,2]
[370015084,1751833840079,-460.0,0.00019178,2]
[370015085,1751833840088,-460.0,0.00019178,2]
[370015086,1751833840098,-460.0,0.00019178,2]
[370015087,1751833840108,-460.0,0.00019178,2]
[370015088,1751833840117,-460.0,0.00019178,2]
[370015089,1751833840127,-373.74592342,0.00019178,2]
[370015090,1751833840142,-86.25407658,0.00019178,2]
[370015091,1751833840152,-314.33599075,0.00019178,2]
[370015092,1751833840168,-205.66400925,0.00019178,2]
[370015093,1751833840177,-460.0,0.00019178,2]
[370015094,1751833840186,-460.0,0.00019178,2]
[370015095,1751833840195,-460.0,0.00019178,2]
[370015096,1751833840204,-460.0,0.00019178,2]
[370015097,1751833840214,-460.0,0.00019178,2]
[370015098,1751833840223,-460.0,0.00019178,2]
[370015099,1751833840232,-460.0,0.00019178,2]
[370015100,1751833840242,-460.0,0.00019178,2]
[370015101,1751833840251,-460.0,0.00019178,2]
[370015102,1751833840260,-460.0,0.00019178,2]
[370015103,1751833840269,-460.0,0.00019178,2]
[370015104,1751833840278,-460.0,0.00019178,2]
[370015105,1751833840287,-460.0,0.00019178,2]
[370015106,1751833840296,-460.0,0.00019178,2]
[370015107,1751833840305,-169.97007902,0.00019178,2]
[370015108,1751833840314,-460.0,0.00019178,2]
[370015109,1751833840323,-460.0,0.00019178,2]
[370015110,1751833840332,-460.0,0.00019178,2]
[370015111,1751833840341,-393.20034017,0.00019178,2]
[370015112,1751833840350,-280.27028259,0.00019178,2]
[370015113,1751833840611,-179.72971741,0.00019178,2]
[370015114,1751833840621,-460.0,0.00019178,2]
[370015115,1751833840630,-546.10318052,0.00019178,2]
[370015116,1751833840639,-460.0,0.00019178,2]
[370015117,1751833840648,-315.76752322,0.00019178,2]
[370015118,1751833840658,-460.0,0.00019178,2]
[370015119,1751833840667,-460.0,0.00019178,2]
[370015120,1751833840676,-460.0,0.00019178,2]
[370015121,1751833840685,-523.13113689,0.00019178,2]
[370015122,1751833840694,-460.0,0.00019178,2]
[370015123,1751833840703,-460.0,0.00019178,2]
[370015124,1751833840711,-99.1333462,0.00019178,2]
[370015125,1751833840723,-360.8666538,0.00019178,2]
[370015126,1751833840732,-460.0,0.00019178,2]
[370015127,1751833840742,-460.0,0.00019178,2]
[370015128,1751833840751,-460.0,0.00019178,2]
[370015129,1751833840760,-83.42156933,0.00019178,2]
[370015130,1751833840771,-376.57843067,0.00019178,2]
[370015131,1751833840780,-460.0,0.00019178,2]
[370015132,1751833840789,-183.24656935,0.00019178,2]
[370015133,1751833840906,-276.75343065,0.00019178,2]
[370015134,1751833840916,-546.51,0.00019178,2]
[370015135,1751833840925,-460.0,0.00019178,2]
[370015136,1751833840934,-191.45111005,0.00019178,2]
[370015137,1751833840944,-362.46437087,0.00019178,2]
[370015138,1751833840953,-460.0,0.00019178,2]
[370015139,1751833840962,-460.0,0.00019178,2]
[370015140,1751833840972,-163.65774911,0.00019178,2]
[370015141,1751833840981,-460.0,0.00019178,2]
[370015142,1751833840990,-514.24,0.00019178,2]
[370015143,1751833841000,-460.0,0.00019178,2]
[370015144,1751833841009,-487.66,0.00019178,2]
[370015145,1751833841019,-460.0,0.00019178,2]
[370015146,1751833841028,-460.0,0.00019178,2]
[370015147,1751833841038,-154.79740235,0.00019178,2]
[370015148,1751833841047,-460.0,0.00019178,2]
[370015149,1751833841057,-347.67782935,0.00019178,2]
[370015150,1751833841066,-460.0,0.00019178,2]
[370015151,1751833841076,-460.0,0.00019178,2]
[370015152,1751833841086,-460.0,0.00019178,2]
[370015153,1751833841096,-460.0,0.00019178,2]
[370015154,1751833841105,-460.0,0.00019178,2]
[370015155,1751833841115,-460.0,0.00019178,2]
[370015156,1751833841125,-460.0,0.00019178,2]
[370015157,1751833841134,-460.0,0.00019178,2]
[370015158,1751833841144,-460.0,0.00019178,2]
[370015159,1751833841154,-460.0,0.00019178,2]
[370015160,1751833841164,-460.0,0.00019178,2]
[370015161,1751833841173,-460.0,0.00019178,2]
[370015162,1751833841183,-460.0,0.00019178,2]
[370015163,1751833841192,-460.0,0.00019178,2]
[370015164,1751833841202,-460.0,0.00019178,2]
[370015165,1751833841211,-460.0,0.00019178,2]
[370015166,1751833841221,-460.0,0.00019178,2]
[370015167,1751833841231,-460.0,0.00019178,2]
[370015168,1751833841240,-460.0,0.00019178,2]
[370015169,1751833841250,-460.0,0.00019178,2]
[370015170,1751833841259,-460.0,0.00019178,2]
[370015171,1751833841269,-460.0,0.00019178,2]
[370015172,1751833841278,-460.0,0.00019178,2]
[370015173,1751833841287,-460.0,0.00019178,2]
[370015174,1751833841297,-460.0,0.00019178,2]
[370015175,1751833841306,-28.24833183,0.00019178,2]
[370015176,1751833841322,-431.75166817,0.00019178,2]
[370015177,1751833841332,-460.0,0.00019178,2]
[370015178,1751833841342,-460.0,0.00019178,2]
[370015179,1751833841352,-460.0,0.00019178,2]
[370015180,1751833841362,-467.58536386,0.00019178,2]
[370015181,1751833841374,-460.0,0.00019178,2]
[370015182,1751833841384,-460.0,0.00019178,2]
[370015183,1751833841394,-460.0,0.00019178,2]
[370015184,1751833841404,-460.0,0.00019178,2]
[370015185,1751833841414,-460.0,0.00019178,2]
[370015186,1751833841424,-460.0,0.00019178,2]
[370015187,1751833841434,-582.51,0.00019178,2]
[370015188,1751833841444,-460.0,0.00019178,2]
[370015189,1751833841453,-460.0,0.00019178,2]
[370015190,1751833841464,-460.0,0.00019178,2]
[370015191,1751833841474,-460.0,0.00019178,2]
[370015192,1751833841484,-490.0,0.00019178,2]
[370015193,1751833841495,-529.78,0.00019178,2]
[370015194,1751833841506,-460.0,0.00019178,2]
[370015195,1751833841516,-460.0,0.00019178,2]
[370015196,1751833841526,-460.0,0.00019178,2]
[370015197,1751833841539,-460.0,0.00019178,2]
[370015198,1751833841551,-460.0,0.00019178,2]
[370015199,1751833841561,-460.0,0.00019178,2]
[370015200,1751833841571,-460.0,0.00019178,2]
[370015201,1751833841581,-460.0,0.00019178,2]
[370015202,1751833841592,-154.56296797,0.00019178,2]
[370015203,1751833841677,-305.43703203,0.00019178,2]
[370015204,1751833841688,-460.0,0.00019178,2]
[370015205,1751833841698,-460.0,0.00019178,2]
[370015206,1751833841708,-460.0,0.00019178,2]
[370015207,1751833841718,-460.0,0.00019178,2]
[370015208,1751833841727,-581.2,0.00019178,2]
[370015209,1751833841736,-460.0,0.00019178,2]
[370015210,1751833841746,-460.0,0.00019178,2]
[370015211,1751833841755,-479.23,0.00019178,2]
[370015212,1751833841765,-460.0,0.00019178,2]
[370015213,1751833841774,-460.0,0.00019178,2]
[370015214,1751833841783,-460.0,0.00019178,2]
[370015215,1751833841793,-627.22,0.00019178,2]
[370015216,1751833841803,-460.0,0.00019178,2]
[370015217,1751833841812,-460.0,0.00019178,2]
[370015218,1751833841821,-460.0,0.00019178,2]
[370015219,1751833841831,-460.0,0.00019178,2]
[370015220,1751833841840,-520.0,0.00019178,2]
[370015221,1751833841849,-460.0,0.00019178,2]
[370015222,1751833841859,-460.0,0.00019178,2]
[370015223,1751833841869,-460.0,0.00019178,2]
[370015224,1751833841878,-460.0,0.00019178,2]
[370015225,1751833841888,-460.0,0.00019178,2]
[370015226,1751833841898,-460.0,0.00019178,2]
[370015227,1751833841908,-460.0,0.00019178,2]
[370015228,1751833841918,-460.0,0.00019178,2]
[370015229,1751833841928,-555.89,0.00019178,2]
[370015230,1751833841937,-645.84,0.00019178,2]
[370015231,1751833841947,-460.0,0.00019178,2]
[370015232,1751833841957,-460.0,0.00019178,2]
[370015233,1751833841967,-460.0,0.00019178,2]
[370015234,1751833841976,-460.0,0.00019178,2]
[370015235,1751833841986,-460.0,0.00019178,2]
[370015236,1751833841996,-585.75,0.00019178,2]
[370015237,1751833842006,-460.0,0.00019178,2]
[370015238,1751833842015,-460.0,0.00019178,2]
[370015239,1751833842025,-460.0,0.00019178,2]
[370015240,1751833842036,-460.0,0.00019178,2]
[370015241,1751833842046,-460.0,0.00019178,2]
[370015242,1751833842055,-460.0,0.00019178,2]
[370015243,1751833842065,-460.0,0.00019178,2]
[370015244,1751833842075,-153.09296797,0.00019178,2]
[370015245,1751833842089,-306.90703203,0.00019178,2]
[370015246,1751833842098,-460.0,0.00019178,2]
[370015247,1751833842109,-504.72,0.00019178,2]
[370015248,1751833842119,-571.77,0.00019178,2]
[370015249,1751833842128,-838.88,0.00019178,2]
[370015250,1751833842138,-460.0,0.00019178,2]
[370015251,1751833842148,-460.0,0.00019178,2]
[370015252,1751833842158,-460.0,0.00019178,2]
[370015253,1751833842168,-198.49,0.00019178,2]
[370015254,1751833842178,-460.0,0.00019178,2]
[370015255,1751833842188,-1243.74,0.00019178,2]
[370015256,1751833842198,-634.51,0.00019178,2]
[370015257,1751833842207,-389.02208767,0.00019178,2]
[370015258,1751833842217,-460.0,0.00019178,2]
[370015259,1751833842226,-460.0,0.00019178,2]
[370015260,1751833842236,-460.0,0.00019178,2]
[370015261,1751833842246,-460.0,0.00019178,2]
[370015262,1751833842255,-460.0,0.00019178,2]
[370015263,1751833842265,-460.0,0.00019178,2]
[370015264,1751833842275,-485.34,0.00019178,2]
[370015265,1751833842284,-672.44,0.00019178,2]
[370015266,1751833842293,-460.0,0.00019178,2]
[370015267,1751833842303,-460.0,0.00019178,2]
[370015268,1751833842313,-460.0,0.00019178,2]
[370015269,1751833842322,-460.0,0.00019178,2]
[370015270,1751833842332,-460.0,0.00019178,2]
[370015271,1751833842342,-725.82,0.00019178,2]
[370015272,1751833842351,-460.0,0.00019178,2]
[370015273,1751833842362,-460.0,0.00019178,2]
[370015274,1751833842371,-460.0,0.00019178,2]
[370015275,1751833842381,-460.0,0.00019178,2]
[370015276,1751833842392,-1028.78,0.00019178,2]
[370015277,1751833842402,-460.0,0.00019178,2]
[370015278,1751833842412,-496.57,0.00019178,2]
[370015279,1751833842422,-590.65,0.00019178,2]
[370015280,1751833842432,-460.0,0.00019178,2]
[370015281,1751833842442,-460.0,0.00019178,2]
[370015282,1751833842451,-460.0,0.00019178,2]
[370015283,1751833842461,-592.47,0.00019178,2]
[370015284,1751833842471,-460.0,0.00019178,2]
[370015285,1751833842480,-687.66,0.00019178,2]
[370015286,1751833842489,-460.0,0.00019178,2]
[370015287,1751833842499,-460.0,0.00019178,2]
[370015288,1751833842508,-460.0,0.00019178,2]
[370015289,1751833842518,-460.0,0.00019178,2]
[370015290,1751833842529,-211.06103739,0.00019178,2]
[370015291,1751833842539,-460.0,0.00019178,2]
[370015292,1751833842549,-460.0,0.00019178,2]
[370015293,1751833842560,-840.25,0.00019178,2]
[370015294,1751833842570,-638.27,0.00019178,2]
[370015295,1751833842580,-460.0,0.00019178,2]
[370015296,1751833842589,-460.0,0.00019178,2]
[370015297,1751833842599,-460.0,0.00019178,2]
[370015298,1751833842608,-460.0,0.00019178,2]
[370015299,1751833842618,-460.0,0.00019178,2]
[370015300,1751833842628,-460.0,0.00019178,2]
[370015301,1751833842638,-460.0,0.00019178,2]
[370015302,1751833842649,-141.39936902,0.00019178,2]
[370015307,1751833845575,-166.2740343,0.00019078,2]
[370015308,1751833845585,-910.4259657,0.00019125,2]
[370015588,1751833900396,156.79,0.00013699,2]
[370015593,1751834414291,301.0,0.00030136,120]
[370015614,1751835031832,-190.85,0.00014227,2]
[370015615,1751835031842,-250.0,0.00015,2]
[370015616,1751835031852,-168.74,0.00016712,2]
[370015617,1751835031862,-500.0,0.00017064,2]
[370015618,1751835031871,-500.0,0.00017064,2]
[370015619,1751835031885,-666.0,0.00017723,2]
[370015620,1751835031894,-1000.0,0.00017731,2]
[370015621,1751835031904,-1200.0,0.00017843,2]
[370015622,1751835031914,-1200.0,0.00017843,2]
[370015623,1751835031923,-300.0,0.00017843,2]
[370015624,1751835031934,-19355.83925869,0.00017844,2]
[370015625,1751835031946,-1000.0,0.00017844,2]
[370015626,1751835031966,-2014.16074131,0.00017844,2]
[370015627,1751835031976,-218.67,0.00017868,2]
[370015628,1751835031986,-336.38,0.000179,2]
[370015629,1751835031996,-200.0,0.00017962,7]
[370015630,1751835032006,-150.0,0.00017977,2]
[370015631,1751835032019,-302.82,0.0001804,2]
[370015632,1751835032028,-456.91,0.00018078,2]
[370015633,1751835032039,-456.91,0.00018078,2]
[370015634,1751835032048,-389.52,0.00018093,2]
[370015636,1751835032058,-150.0,0.000181,2]
[370015638,1751835032068,-1092.37,0.00018106,2]
[370015640,1751835032079,-178.1,0.000182,2]
[370015642,1751835032089,-207.4,0.00018204,2]
[370015644,1751835032099,-303.25,0.00018319,2]
[370015646,1751835032109,-456.91,0.00018378,2]
[370015648,1751835032119,-205.32,0.000184,2]
[370015650,1751835032129,-168.0,0.00018587,2]
[370015652,1751835032139,-151.0,0.00018589,2]
[370015654,1751835032148,-444.96720661,0.00018589,2]
[370015656,1751835032158,-151.0,0.00018589,2]
[370015657,1751835032167,-151.0,0.00018589,2]
[370015658,1751835032177,-151.0,0.00018589,2]
[370015660,1751835032187,-151.0,0.00018589,2]
[370015662,1751835032196,-151.0,0.00018589,2]
[370015664,1751835032206,-151.0,0.00018589,2]
[370015666,1751835032215,-151.0,0.00018589,2]
[370015668,1751835032225,-151.0,0.00018589,2]
[370015671,1751835032234,-151.0,0.00018589,2]
[370015673,1751835032244,-151.0,0.00018589,2]
[370015675,1751835032253,-151.0,0.00018589,2]
[370015677,1751835032263,-150.0,0.0001859,2]
[370015679,1751835032273,-2339.14,0.000186,2]
[370015681,1751835032282,-164.14,0.000186,2]
[370015683,1751835032292,-150.0,0.000186,2]
[370015685,1751835032301,-150.0,0.000186,2]
[370015686,1751835032310,-171.52,0.000186,2]
[370015687,1751835032319,-300.0,0.000186,2]
[370015688,1751835032328,-712.1,0.000186,2]
[370015689,1751835032338,-168.0,0.00018609,2]
[370015690,1751835032347,-1622.1,0.0001863,2]
[370015691,1751835032358,-463.37,0.0001863,2]
[370015692,1751835032368,-463.37,0.0001863,2]
[370015693,1751835032378,-462.43,0.0001863,2]
[370015694,1751835032388,-2000.0,0.0001877,5]
[370015695,1751835032398,-456.91,0.00018778,2]
[370015696,1751835032408,-1200.0,0.000188,6]
[370015697,1751835032417,-168.0,0.00018814,2]
[370015698,1751835032427,-428.97,0.00018878,2]
[370015699,1751835032437,-1000.0,0.00018887,2]
[370015700,1751835032446,-2400.0,0.000189,6]
[370015701,1751835032457,-150.0,0.00018904,2]
[370015702,1751835032467,-150.0,0.00018904,2]
[370015703,1751835032477,-1417.46,0.00018904,2]
[370015704,1751835032487,-164.05,0.00018904,2]
[370015705,1751835032497,-712.1,0.00018904,2]